lending/lending_fUSD_20250122
["ID","MTS","AMOUNT","RATE_DAILY","PERIOD"]
[350015169,1737567038390,-500.0,0.00019724,2]
[350015171,1737567038400,-500.0,0.00019724,2]
[350015173,1737567038409,-500.0,0.00019724,2]
[350015175,1737567038419,-500.0,0.00019724,2]
[350015177,1737567038428,-500.0,0.00019724,2]
[350015179,1737567038437,-500.0,0.00019724,2]
[350015181,1737567038446,-500.0,0.00019724,2]
[350015183,1737567038455,-500.0,0.00019724,2]
[350015185,1737567038464,-500.0,0.00019724,2]
[350015187,1737567038474,-500.0,0.00019724,2]
[350015189,1737567038483,-501.73498177,0.00019724,2]
[350015191,1737567038492,-500.0,0.00019724,2]
[350015193,1737567038502,-500.0,0.00019724,2]
[350015195,1737567038511,-618.5,0.00019724,2]
[350015197,1737567038520,-500.0,0.00019724,2]
[350015199,1737567038529,-500.0,0.00019724,2]
[350015201,1737567038539,-529.997562,0.00019724,2]
[350015203,1737567038550,-505.2025127,0.00019724,2]
[350015205,1737567038565,-500.0,0.00019724,2]
[350015207,1737567038574,-500.0,0.00019724,2]
[350015209,1737567038584,-500.0,0.00019724,2]
[350015211,1737567038593,-500.0,0.00019724,2]
[350015213,1737567038603,-500.0,0.00019724,2]
[350015215,1737567038615,-500.0,0.00019724,2]
[350015217,1737567038624,-500.0,0.00019724,2]
[350015219,1737567038633,-500.0,0.00019724,2]
[350015221,1737567038642,-500.0,0.00019724,2]
[350015223,1737567038652,-526.75,0.00019724,2]
[350015225,1737567038667,-500.0,0.00019724,2]
[350015227,1737567038677,-507.61127453,0.00019724,2]
[350015228,1737567038687,-500.0,0.00019724,2]
[350015229,1737567038698,-500.0,0.00019724,2]
[350015230,1737567038707,-391.95334,0.00019724,2]
[350015231,1737567038716,-500.0,0.00019724,2]
[350015232,1737567038726,-500.0,0.00019724,2]
[350015233,1737567038736,-554.29,0.00019724,2]
[350015234,1737567038745,-618.87111228,0.00019724,2]
[350015235,1737567038756,-500.0,0.00019724,2]
[350015236,1737567038765,-500.0,0.00019724,2]
[350015237,1737567038774,-500.0,0.00019724,2]
[350015239,1737567038785,-500.0,0.00019724,2]
[350015241,1737567038795,-500.0,0.00019724,2]
[350015243,1737567038804,-500.0,0.00019724,2]
[350015245,1737567038815,-406.28813886,0.00019724,2]
[350015247,1737567038824,-500.0,0.00019724,2]
[350015249,1737567038834,-500.0,0.00019724,2]
[350015251,1737567038843,-500.0,0.00019724,2]
[350015253,1737567038852,-500.0,0.00019724,2]
[350015255,1737567038862,-500.0,0.00019724,2]
[350015257,1737567038871,-526.08178114,0.00019724,2]
[350015259,1737567038881,-500.0,0.00019724,2]
[350015260,1737567038890,-500.0,0.00019724,2]
[350015261,1737567038899,-500.0,0.00019724,2]
[350015263,1737567038908,-500.0,0.00019724,2]
[350015264,1737567038918,-502.88653398,0.00019724,2]
[350015265,1737567038928,-500.0,0.00019724,2]
[350015266,1737567038937,-712.05,0.00019724,2]
[350015267,1737567038947,-500.0,0.00019724,2]
[350015268,1737567038956,-500.0,0.00019724,2]
[350015269,1737567038965,-500.0,0.00019724,2]
[350015270,1737567038975,-500.0,0.00019724,2]
[350015271,1737567038985,-500.0,0.00019724,2]
[350015272,1737567038995,-500.0,0.00019724,2]
[350015273,1737567039004,-500.0,0.00019724,2]
[350015274,1737567039013,-500.0,0.00019724,2]
[350015275,1737567039023,-500.0,0.00019724,2]
[350015276,1737567039033,-500.0,0.00019724,2]
[350015277,1737567039043,-500.0,0.00019724,2]
[350015278,1737567039052,-500.0,0.00019724,2]
[350015279,1737567039062,-500.0,0.00019724,2]
[350015280,1737567039071,-500.0,0.00019724,2]
[350015281,1737567039080,-273.14,0.00019724,2]
[350015282,1737567039090,-500.0,0.00019724,2]
[350015283,1737567039100,-500.0,0.00019724,2]
[350015284,1737567039109,-500.0,0.00019724,2]
[350015285,1737567039118,-228.92130223,0.00019724,2]
[350015286,1737567039128,-688.89,0.00019724,2]
[350015287,1737567039137,-500.0,0.00019724,2]
[350015288,1737567039145,-500.0,0.00019724,2]
[350015289,1737567039155,-500.0,0.00019724,2]
[350015290,1737567039164,-500.0,0.00019724,2]
[350015291,1737567039173,-500.0,0.00019724,2]
[350015292,1737567039182,-501.96,0.00019724,2]
[350015293,1737567039191,-500.0,0.00019724,2]
[350015294,1737567039200,-500.0,0.00019724,2]
[350015295,1737567039209,-1301.15,0.00019724,2]
[350015296,1737567039219,-500.0,0.00019724,2]
[350015297,1737567039228,-500.0,0.00019724,2]
[350015298,1737567039237,-515.01,0.00019724,2]
[350015299,1737567039246,-527.94,0.00019724,2]
[350015300,1737567039255,-500.0,0.00019724,2]
[350015301,1737567039264,-500.0,0.00019724,2]
[350015302,1737567039273,-500.0,0.00019724,2]
[350015303,1737567039283,-500.0,0.00019724,2]
[350015304,1737567039292,-627.81,0.00019724,2]
[350015305,1737567039301,-500.0,0.00019724,2]
[350015306,1737567039312,-837.4,0.00019724,2]
[350015307,1737567039321,-500.0,0.00019724,2]
[350015308,1737567039330,-500.0,0.00019724,2]
[350015309,1737567039339,-500.0,0.00019724,2]
[350015310,1737567039348,-552.94,0.00019724,2]
[350015311,1737567039358,-888.04,0.00019724,2]
[350015312,1737567039368,-500.0,0.00019724,2]
[350015313,1737567039377,-500.0,0.00019724,2]
[350015314,1737567039387,-879.45,0.00019724,2]
[350015315,1737567039396,-500.0,0.00019724,2]
[350015316,1737567039405,-500.0,0.00019724,2]
[350015317,1737567039415,-500.0,0.00019724,2]
[350015318,1737567039424,-605.14,0.00019724,2]
[350015319,1737567039433,-500.0,0.00019724,2]
[350015320,1737567039442,-500.0,0.00019724,2]
[350015321,1737567039452,-708.95,0.00019724,2]
[350015322,1737567039463,-1071.1,0.00019724,2]
[350015323,1737567039472,-500.0,0.00019724,2]
[350015324,1737567039481,-500.0,0.00019724,2]
[350015325,1737567039490,-500.0,0.00019724,2]
[350015326,1737567039499,-500.0,0.00019724,2]
[350015327,1737567039508,-1556.96,0.00019724,2]
[350015328,1737567039517,-1487.3,0.00019724,2]
[350015329,1737567039527,-1383.45,0.00019724,2]
[350015330,1737567039536,-890.89,0.00019724,2]
[350015331,1737567039545,-500.0,0.00019724,2]
[350015332,1737567039554,-644.33,0.00019724,2]
[350015333,1737567039564,-1084.28,0.00019724,2]
[350015334,1737567039573,-500.0,0.00019724,2]
[350015335,1737567039582,-500.0,0.00019724,2]
[350015336,1737567039591,-554.09,0.00019724,2]
[350015337,1737567039603,-500.0,0.00019724,2]
[350015338,1737567039613,-1217.16,0.00019724,2]
[350015339,1737567039622,-798.23,0.00019724,2]
[350015340,1737567039632,-500.0,0.00019724,2]
[350015341,1737567039641,-564.79,0.00019724,2]
[350015342,1737567039650,-500.0,0.00019724,2]
[350015343,1737567039660,-594.63,0.00019724,2]
[350015344,1737567039669,-682.3,0.00019724,2]
[350015345,1737567039678,-533.48,0.00019724,2]
[350015346,1737567039688,-1502.7,0.00019724,2]
[350015348,1737567039698,-500.0,0.00019724,2]
[350015349,1737567039707,-326.89650705,0.00019724,2]
[350015350,1737567039716,-1018.17,0.00019724,2]
[350015351,1737567039725,-792.05,0.00019724,2]
[350015352,1737567039735,-500.0,0.00019724,2]
[350015353,1737567039744,-500.0,0.00019724,2]
[350015354,1737567039753,-500.0,0.00019724,2]
[350015355,1737567039762,-2048.4,0.00019724,2]
[350015356,1737567039771,-500.0,0.00019724,2]
[350015357,1737567039781,-500.0,0.00019724,2]
[350015358,1737567039790,-564.93,0.00019724,2]
[350015359,1737567039800,-500.0,0.00019724,2]
[350015360,1737567039810,-500.0,0.00019724,2]
[350015361,1737567039820,-500.0,0.00019724,2]
[350015362,1737567039830,-500.0,0.00019724,2]
[350015363,1737567039839,-710.8,0.00019724,2]
[350015364,1737567039848,-747.51,0.00019724,2]
[350015365,1737567039857,-1175.89,0.00019724,2]
[350015366,1737567039867,-500.0,0.00019724,2]
[350015367,1737567039876,-274.22753248,0.00019724,2]
[350015368,1737567039885,-612.25,0.00019724,2]
[350015369,1737567039895,-500.0,0.00019724,2]
[350015370,1737567039904,-500.0,0.00019725,2]
[350015371,1737567039913,-440.8784267,0.00019725,2]
[350015372,1737567039922,-157.94277096,0.00019798,2]
[350015373,1737567039931,-649.99246541,0.0001986,2]
[350015374,1737567039940,-1391.37555814,0.00019877,2]
[350015375,1737567039949,-284.99,0.00019888,2]
[350015376,1737567039958,-36178.1374,0.00019898,2]
[350015377,1737567039968,-5000.0,0.00019898,2]
[350015378,1737567039978,-57666.17145835,0.000199,7]
[350015379,1737567039987,-5405.62923051,0.000199,2]
[350015380,1737567039997,-828.51,0.0001996,2]
[350015381,1737567040006,-5405.62923022,0.00019969,2]
[350015382,1737567040015,-500.0,0.00019997,2]
[350015383,1737567040025,-500.0,0.00019997,2]
[350015384,1737567040034,-500.0,0.00019997,2]
[350015385,1737567040043,-643.82,0.00019997,2]
[350015386,1737567040053,-762.63,0.00019997,2]
[350015387,1737567040063,-783.02,0.00019997,2]
[350015388,1737567040073,-525.98,0.00019997,2]
[350015389,1737567040082,-928.03,0.00019997,2]
[350015390,1737567040091,-500.0,0.00019997,2]
[350015391,1737567040100,-500.0,0.00019997,2]
[350015392,1737567040110,-674.75,0.00019997,2]
[350015393,1737567040119,-1015.18,0.00019997,2]
[350015394,1737567040129,-500.0,0.00019997,2]
[350015395,1737567040139,-500.0,0.00019997,2]
[350015396,1737567040148,-1100.49,0.00019997,2]
[350015397,1737567040158,-500.0,0.00019997,2]
[350015398,1737567040168,-500.0,0.00019997,2]
[350015399,1737567040178,-1364.61,0.00019997,2]
[350015400,1737567040188,-514.75,0.00019997,2]
[350015406,1737567040357,-584.5,0.00019997,2]
[350015408,1737567040367,-500.0,0.00019997,2]
[350015410,1737567040377,-812.46,0.00019997,2]
[350015412,1737567040387,-500.0,0.00019997,2]
[350015414,1737567040397,-500.0,0.00019997,2]
[350015416,1737567040406,-742.8,0.00019997,2]
[350015417,1737567040415,-471.91522939,0.00019998,2]
[350015419,1737567040425,-572.60596787,0.00019998,2]
[350015421,1737567040435,-500.0,0.00019998,2]
[350015423,1737567040444,-500.0,0.00019998,2]
[350015424,1737567040453,-500.0,0.00019998,2]
[350015425,1737567040463,-500.0,0.00019998,2]
[350015426,1737567040472,-500.0,0.00019998,2]
[350015427,1737567040482,-500.0,0.00019998,2]
[350015428,1737567040492,-500.0,0.00019998,2]
[350015429,1737567040501,-500.0,0.00019998,2]
[350015430,1737567040511,-500.0,0.00019998,2]
[350015431,1737567040521,-500.0,0.00019998,2]
[350015432,1737567040531,-500.0,0.00019998,2]
[350015433,1737567040542,-500.0,0.00019998,2]
[350015434,1737567040551,-500.0,0.00019998,2]
[350015435,1737567040562,-500.0,0.00019998,2]
[350015436,1737567040572,-500.0,0.00019998,2]
[350015437,1737567040581,-500.0,0.00019998,2]
[350015438,1737567040591,-500.0,0.00019998,2]
[350015439,1737567040601,-514.56043483,0.00019998,2]
[350015440,1737567040613,-500.0,0.00019998,2]
[350015441,1737567040623,-500.0,0.00019998,2]
[350015442,1737567040633,-500.0,0.00019998,2]
[350015443,1737567040642,-500.0,0.00019998,2]
[350015444,1737567040652,-500.0,0.00019998,2]
[350015445,1737567040662,-157.10857593,0.00019998,2]
[350015446,1737567040839,-342.89142407,0.00019998,2]
[350015447,1737567040849,-500.0,0.00019998,2]
[350015448,1737567040858,-500.0,0.00019998,2]
[350015449,1737567040868,-500.0,0.00019998,2]
[350015450,1737567040878,-500.0,0.00019998,2]
[350015451,1737567040888,-529.997562,0.00019998,2]
[350015452,1737567040897,-500.0,0.00019998,2]
[350015453,1737567040907,-500.0,0.00019998,2]
[350015454,1737567040916,-500.0,0.00019998,2]
[350015455,1737567040926,-500.0,0.00019998,2]
[350015456,1737567040935,-391.95334,0.00019998,2]
[350015457,1737567040944,-500.0,0.00019998,2]
[350015458,1737567040954,-500.0,0.00019998,2]
[350015459,1737567040963,-500.0,0.00019998,2]
[350015460,1737567040972,-500.0,0.00019998,2]
[350015461,1737567040982,-500.0,0.00019998,2]
[350015462,1737567040991,-500.0,0.00019998,2]
[350015463,1737567041001,-500.0,0.00019998,2]
[350015464,1737567041010,-500.0,0.00019998,2]
[350015465,1737567041020,-500.0,0.00019998,2]
[350015466,1737567041029,-712.05,0.00019998,2]
[350015467,1737567041038,-500.0,0.00019998,2]
[350015468,1737567041048,-500.0,0.00019998,2]
[350015469,1737567041057,-500.0,0.00019998,2]
[350015470,1737567041069,-500.0,0.00019998,2]
[350015471,1737567041079,-231.62040296,0.00019998,2]
[350015472,1737567041088,-500.0,0.00019998,2]
[350015473,1737567041098,-500.0,0.00019998,2]
[350015474,1737567041108,-584.29,0.00019998,2]
[350015475,1737567041118,-500.0,0.00019998,2]
[350015476,1737567041127,-500.0,0.00019998,2]
[350015477,1737567041137,-500.0,0.00019998,2]
[350015478,1737567041146,-500.0,0.00019998,2]
[350015479,1737567041155,-500.0,0.00019998,2]
[350015480,1737567041165,-688.89,0.00019998,2]
[350015481,1737567041174,-500.0,0.00019998,2]
[350015482,1737567041183,-453.70334552,0.00019998,2]
[350015483,1737567041195,-46.29665448,0.00019998,2]
[350015484,1737567041205,-500.0,0.00019998,2]
[350015485,1737567041214,-500.0,0.00019998,2]
[350015486,1737567041224,-500.0,0.00019998,2]
[350015487,1737567041233,-501.96,0.00019998,2]
[350015488,1737567041243,-500.0,0.00019998,2]
[350015489,1737567041252,-500.0,0.00019998,2]
[350015490,1737567041262,-1301.15,0.00019998,2]
[350015491,1737567041272,-500.0,0.00019998,2]
[350015492,1737567041283,-500.0,0.00019998,2]
[350015493,1737567041292,-515.01,0.00019998,2]
[350015494,1737567041302,-527.94,0.00019998,2]
[350015495,1737567041312,-500.0,0.00019998,2]
[350015496,1737567041322,-500.0,0.00019998,2]
[350015497,1737567041331,-500.0,0.00019998,2]
[350015498,1737567041340,-627.81,0.00019998,2]
[350015499,1737567041350,-500.0,0.00019998,2]
[350015500,1737567041359,-837.4,0.00019998,2]
[350015501,1737567041368,-500.0,0.00019998,2]
[350015502,1737567041378,-96.18383133,0.00019998,2]
[350015503,1737567041390,-403.81616867,0.00019998,2]
[350015504,1737567041399,-500.0,0.00019998,2]
[350015505,1737567041409,-552.94,0.00019998,2]
[350015506,1737567041418,-888.04,0.00019998,2]
[350015507,1737567041428,-500.0,0.00019998,2]
[350015508,1737567041438,-879.45,0.00019998,2]
[350015509,1737567041448,-500.0,0.00019998,2]
[350015510,1737567041458,-297.26911961,0.00019998,2]
[350015511,1737567041468,-500.0,0.00019998,2]
[350015512,1737567041478,-605.14,0.00019998,2]
[350015513,1737567041488,-500.0,0.00019998,2]
[350015514,1737567041497,-500.0,0.00019998,2]
[350015515,1737567041507,-708.95,0.00019998,2]
[350015516,1737567041516,-1071.1,0.00019998,2]
[350015517,1737567041526,-500.0,0.00019998,2]
[350015518,1737567041536,-246.0459864,0.00019998,2]
[350015519,1737567041546,-500.0,0.00019998,2]
[350015520,1737567041555,-500.0,0.00019998,2]
[350015521,1737567041565,-1556.96,0.00019998,2]
[350015522,1737567041575,-1487.3,0.00019998,2]
[350015523,1737567041584,-1383.45,0.00019998,2]
[350015524,1737567041593,-890.89,0.00019998,2]
[350015525,1737567041605,-500.0,0.00019998,2]
[350015526,1737567041615,-644.33,0.00019998,2]
[350015527,1737567041624,-1084.28,0.00019998,2]
[350015528,1737567041633,-500.0,0.00019998,2]
[350015529,1737567041642,-500.0,0.00019998,2]
[350015530,1737567041652,-554.09,0.00019998,2]
[350015531,1737567041661,-500.0,0.00019998,2]
[350015532,1737567041670,-845.94872532,0.00019998,2]
[350015533,1737567041691,-371.21127468,0.00019998,2]
[350015534,1737567041701,-798.23,0.00019998,2]
[350015535,1737567041710,-500.0,0.00019998,2]
[350015536,1737567041719,-564.79,0.00019998,2]
[350015537,1737567041728,-500.0,0.00019998,2]
[350015538,1737567041738,-594.63,0.00019998,2]
[350015539,1737567041747,-682.3,0.00019998,2]
[350015540,1737567041756,-533.48,0.00019998,2]
[350015541,1737567041765,-1502.7,0.00019998,2]
[350015542,1737567041775,-500.0,0.00019998,2]
[350015543,1737567041784,-1018.17,0.00019998,2]
[350015544,1737567041793,-792.05,0.00019998,2]
[350015545,1737567041803,-500.0,0.00019998,2]
[350015546,1737567041814,-500.0,0.00019998,2]
[350015547,1737567041824,-2048.4,0.00019998,2]
[350015548,1737567041834,-500.0,0.00019998,2]
[350015549,1737567041843,-564.93,0.00019998,2]
[350015550,1737567041852,-500.0,0.00019998,2]
[350015551,1737567041861,-165.60872532,0.00019998,2]
[350015552,1737567041872,-334.39127468,0.00019998,2]
[350015553,1737567041882,-175.11855898,0.00019998,2]
[350015554,1737567041891,-710.8,0.00019998,2]
[350015555,1737567041901,-747.51,0.00019998,2]
[350015556,1737567041910,-1175.89,0.00019998,2]
[350015557,1737567041920,-500.0,0.00019998,2]
[350015558,1737567041929,-612.25,0.00019998,2]
[350015559,1737567041939,-500.0,0.00019998,2]
[350015560,1737567041948,-3634.45845573,0.0002,2]
[350015561,1737567041959,-6703.99445292,0.0002,2]
[350015562,1737567041971,-298.99907905,0.0002,2]
[350015563,1737567041982,-541.82430386,0.0002,2]
[350015564,1737567041993,-8118.52810347,0.0002,2]
[350015565,1737567042003,-1466.86292971,0.0002,2]
[350015566,1737567042012,-35011.72869946,0.0002,2]
[350015567,1737567042021,-2688.55686339,0.0002,14]
[350015568,1737567042030,-600.44571045,0.0002,2]
[350015569,1737567042040,-193.1230045,0.0002,2]
[350015570,1737567042052,-413.7053904,0.0002,2]
[350015571,1737567042185,-774.6985844,0.00019,2]
[350015572,1737567042196,-530.429,0.00019,2]
[350015573,1737567042208,-1686.2,0.00019,2]
[350015574,1737567042219,-5469.84727551,0.00019,2]
[350015575,1737567042229,-6896.0,0.00019,2]
[350015576,1737567042240,-502.21541207,0.00019,2]
[350015577,1737567042251,-664.41871925,0.00019,2]
[350015578,1737567042262,-11109.52783568,0.00019,2]
[350015579,1737567042289,-4510.77304417,0.00019,2]
[350015580,1737567042302,-11050.64695583,0.00019,2]
[350015581,1737567042362,-978.5307621,0.00019,2]
[350015582,1737567042374,-760.55921756,0.00019,2]
[350015583,1737567042385,-691.87529,0.00019,2]
[350015584,1737567042396,-617.74561553,0.00019,2]
[350015585,1737567042408,-13392.44166667,0.00019,2]
[350015586,1737567042462,-1784.66995933,0.00019,2]
[350015595,1737567042771,-9600.0,0.00019,2]
[350015596,1737567042845,-539.89194852,0.00019,2]
[350015597,1737567042856,-1653.64159327,0.00019,2]
[350015598,1737567042900,-1644.234,0.00019,2]
[350015599,1737567042958,-913.5188708,0.00019,2]
[350015600,1737567042969,-14000.0,0.00019,2]
[350015601,1737567042980,-25008.26373596,0.00019,2]
[350015602,1737567042989,-515005.84738898,0.0002,2]
[350015603,1737567043000,-12674.517128,0.0002,2]
[350015604,1737567043012,-729.94343524,0.0002,2]
[350015627,1737567045659,-354.624451,0.00019723,2]
[350015628,1737567045669,-526.12,0.00019724,2]
[350015629,1737567045678,-90.3533477,0.00019724,2]
[350015630,1737567045714,-409.6466523,0.00019724,2]
[350015631,1737567045723,-506.86,0.00019724,2]
[350015632,1737567045732,-354.624451,0.00019997,2]
[350015633,1737567045741,-526.12,0.00019998,2]
[350015634,1737567045750,-500.0,0.00019998,2]
[350015635,1737567045759,-506.86,0.00019998,2]
[350015636,1737567045768,-17453.0248967,0.0002,2]
[350015637,1737567045784,-1839.99999992,0.0002,2]
[350015638,1737567045795,-320.17,0.0002,2]
[350015639,1737567045834,-937.28503641,0.0002,2]
[350015640,1737567045846,-148368.32182234,0.0002,2]
[350015641,1737567045855,-229.04502503,0.00020003,2]
[350015642,1737567045864,-5204.78420191,0.00020038,2]
[350015643,1737567045891,-200.84502831,0.00020038,2]
[350015644,1737567045900,-248.00366106,0.00020087,2]
[350015645,1737567045911,-401.98880427,0.00020087,2]
[350015646,1737567045920,-975.03961254,0.00020107,2]
[350015647,1737567045948,-575.49,0.00019723,2]
[350015648,1737567045957,-202.251585,0.00020107,2]
[350015649,1737567045968,-3759.5482,0.00020107,2]
[350015650,1737567045979,-468.78983268,0.00020107,2]
[350015651,1737567045988,-362.16648579,0.0002013,2]
[350015652,1737567045999,-1029.20907235,0.0002013,2]
[350015653,1737567046009,-5405.62923022,0.00020176,2]
[350015654,1737567046018,-500.0,0.00020196,2]
[350015655,1737567046027,-500.0,0.00020196,2]
[350015656,1737567046036,-500.0,0.00020196,2]
[350015657,1737567046045,-500.0,0.00020196,2]
[350015658,1737567046054,-500.0,0.00020196,2]
[350015659,1737567046065,-500.0,0.00020196,2]
[350015660,1737567046074,-500.0,0.00020196,2]
[350015661,1737567046083,-500.0,0.00020196,2]
[350015662,1737567046092,-500.0,0.00020196,2]
[350015663,1737567046102,-500.0,0.00020196,2]
[350015664,1737567046111,-500.0,0.00020196,2]
[350015665,1737567046120,-276.32648131,0.00020196,2]
[350015666,1737567046129,-500.0,0.00020196,2]
[350015667,1737567046139,-276.64097161,0.00020196,2]
[350015668,1737567046148,-257.84065877,0.00020196,2]
[350015669,1737567046158,-220.83907709,0.00020196,2]
[350015670,1737567046174,-279.16092291,0.00020196,2]
[350015671,1737567046183,-448.02693929,0.00020196,2]
[350015672,1737567046194,-51.97306071,0.00020196,2]
[350015673,1737567046203,-500.0,0.00020196,2]
[350015674,1737567046213,-500.0,0.00020196,2]
[350015675,1737567046222,-500.0,0.00020196,2]
[350015676,1737567046231,-594.58271872,0.00020196,2]
[350015677,1737567046240,-500.0,0.00020196,2]
[350015678,1737567046250,-500.0,0.00020196,2]
[350015679,1737567046259,-500.0,0.00020196,2]
[350015680,1737567046268,-500.0,0.00020196,2]
[350015681,1737567046278,-500.0,0.00020196,2]
[350015682,1737567046287,-500.0,0.00020196,2]
[350015683,1737567046296,-500.0,0.00020196,2]
[350015684,1737567046305,-500.0,0.00020196,2]
[350015685,1737567046314,-236.3803771,0.00020196,2]
[350015686,1737567046323,-500.0,0.00020196,2]
[350015687,1737567046333,-500.0,0.00020196,2]
[350015688,1737567046342,-500.0,0.00020196,2]
[350015689,1737567046351,-500.0,0.00020196,2]
[350015690,1737567046361,-503.06,0.00020196,2]
[350015691,1737567046370,-651.97,0.00020196,2]
[350015692,1737567046379,-716.48,0.00020196,2]
[350015693,1737567046388,-186.76292219,0.00020196,2]
[350015694,1737567046397,-500.0,0.00020196,2]
[350015695,1737567046406,-500.0,0.00020196,2]
[350015696,1737567046415,-500.0,0.00020196,2]
[350015697,1737567046424,-652.16,0.00020196,2]
[350015698,1737567046433,-500.0,0.00020196,2]
[350015699,1737567046442,-500.0,0.00020196,2]
[350015700,1737567046451,-1352.36,0.00020196,2]
[350015701,1737567046460,-500.0,0.00020196,2]
[350015702,1737567046469,-2806.7,0.00020196,2]
[350015703,1737567046479,-941.61,0.00020196,2]
[350015704,1737567046487,-500.0,0.00020196,2]
[350015705,1737567046497,-500.0,0.00020196,2]
[350015706,1737567046505,-500.0,0.00020196,2]
[350015707,1737567046515,-500.0,0.00020196,2]
[350015708,1737567046524,-500.0,0.00020196,2]
[350015709,1737567046533,-500.0,0.00020196,2]
[350015710,1737567046542,-893.06,0.00020196,2]
[350015711,1737567046551,-500.0,0.00020196,2]
[350015712,1737567046561,-1063.21,0.00020196,2]
[350015713,1737567046572,-500.0,0.00020196,2]
[350015714,1737567046582,-500.0,0.00020196,2]
[350015715,1737567046591,-500.0,0.00020196,2]
[350015716,1737567046601,-525.93,0.00020196,2]
[350015717,1737567046612,-597.44,0.00020196,2]
[350015718,1737567046621,-666.19,0.00020196,2]
[350015719,1737567046631,-500.0,0.00020196,2]
[350015720,1737567046641,-500.0,0.00020196,2]
[350015721,1737567046651,-1000.0,0.00020196,2]
[350015722,1737567046663,-653.46,0.00020196,2]
[350015723,1737567046682,-500.0,0.00020196,2]
[350015724,1737567046700,-500.0,0.00020196,2]
[350015725,1737567046710,-1063.04,0.00020196,2]
[350015726,1737567046719,-1318.11,0.00020196,2]
[350015727,1737567046729,-412.78044229,0.00020196,2]
[350015728,1737567046739,-500.0,0.00020196,2]
[350015729,1737567046748,-500.0,0.00020196,2]
[350015730,1737567046757,-1520.23,0.00020197,2]
[350015731,1737567046767,-5405.62923022,0.00020245,2]
[350015732,1737567046777,-347.93,0.00020269,2]
[350015733,1737567046786,-500.0,0.00020271,2]
[350015734,1737567046796,-500.0,0.00020271,2]
[350015735,1737567046805,-500.0,0.00020271,2]
[350015736,1737567046815,-643.82,0.00020271,2]
[350015737,1737567046825,-762.63,0.00020271,2]
[350015738,1737567046834,-783.02,0.00020271,2]
[350015739,1737567046843,-525.98,0.00020271,2]
[350015740,1737567046854,-928.03,0.00020271,2]
[350015741,1737567046864,-500.0,0.00020271,2]
[350015742,1737567046873,-500.0,0.00020271,2]
[350015743,1737567046882,-674.75,0.00020271,2]
[350015744,1737567046892,-1015.18,0.00020271,2]
[350015745,1737567046901,-500.0,0.00020271,2]
[350015746,1737567046911,-500.0,0.00020271,2]
[350015747,1737567046920,-1100.49,0.00020271,2]
[350015748,1737567046929,-500.0,0.00020271,2]
[350015749,1737567046940,-500.0,0.00020271,2]
[350015750,1737567046949,-1364.61,0.00020271,2]
[350015751,1737567046959,-514.75,0.00020271,2]
[350015752,1737567046968,-500.0,0.00020271,2]
[350015753,1737567046978,-812.46,0.00020271,2]